fUSD/lending_fUSD_20260324
["ID","MTS","AMOUNT","RATE_DAILY","PERIOD"]
[408833493,1774338657132,-898.62825728,0.00039726,15]
[408833494,1774338657142,-898.62825728,0.00039726,15]
[408833495,1774338657152,-898.62825728,0.00039726,15]
[408833496,1774338657162,-898.62825728,0.00039726,15]
[408833497,1774338657172,-197.0,0.00039726,120]
[408833498,1774338657182,-173.0,0.00039726,120]
[408833499,1774338657191,-178.0,0.00039726,30]
[408833500,1774338657201,-400.0,0.00039726,30]
[408833501,1774338657211,-400.0,0.00039726,30]
[408833502,1774338657221,-315.0,0.00039726,30]
[408833503,1774338657230,-177.0,0.00039726,30]
[408833504,1774338657240,-177.0,0.00039726,30]
[408833505,1774338657249,-180.0,0.00039726,30]
[408833506,1774338657259,-2614.0,0.00039726,30]
[408833507,1774338657268,-400.0,0.00039726,30]
[408833508,1774338657278,-305.0,0.00039726,30]
[408833509,1774338657287,-180.0,0.00039726,30]
[408833510,1774338657296,-163.0,0.00039726,30]
[408833511,1774338657306,-172.0,0.00039726,30]
[408833512,1774338657316,-157.0,0.00039726,30]
[408833513,1774338657326,-3483.0,0.00039726,30]
[408833514,1774338657336,-350.0,0.00039726,30]
[408833515,1774338657345,-342.0,0.00039726,30]
[408833516,1774338657361,-1093.8,0.00039825,7]
[408833517,1774338657370,-157.70260568,0.000399,120]
[408833518,1774338657380,-500.0,0.00039999,31]
[408833519,1774338657390,-233.75966692,0.00039999,31]
[408833520,1774338657401,-500.0,0.00039999,31]
[408833521,1774338657410,-500.0,0.00039999,31]
[408833522,1774338657420,-451.42594836,0.00039999,31]
[408833523,1774338657432,-384.03736788,0.00039999,31]
[408833524,1774338657441,-454.65157745,0.00039999,31]
[408833525,1774338657451,-460.83850919,0.00039999,7]
[408833526,1774338657460,-412.74086782,0.00039999,15]
[408833527,1774338657470,-500.0,0.00039999,31]
[408833528,1774338657480,-500.0,0.00039999,31]
[408833529,1774338657490,-500.0,0.00039999,31]
[408833530,1774338657500,-462.63248891,0.00039999,31]
[408833531,1774338657510,-500.0,0.00039999,31]
[408833532,1774338657520,-503.54157865,0.00039999,31]
[408833533,1774338657529,-500.0,0.00039999,31]
[408833534,1774338657539,-500.0,0.00039999,31]
[408833535,1774338657548,-500.0,0.00039999,31]
[408833536,1774338657558,-500.0,0.00039999,31]
[408833537,1774338657568,-500.0,0.00039999,31]
[408833538,1774338657578,-500.0,0.00039999,31]
[408833539,1774338657588,-898.62825728,0.00039999,31]
[408833540,1774338657598,-500.0,0.00039999,31]
[408833541,1774338657608,-500.0,0.00039999,31]
[408833542,1774338657618,-500.0,0.00039999,31]
[408833543,1774338657627,-898.62825728,0.00039999,31]
[408833544,1774338657637,-898.62825728,0.00039999,31]
[408833545,1774338657647,-365.062611,0.00039999,31]
[408833546,1774338657657,-898.62825728,0.00039999,31]
[408833547,1774338657667,-500.0,0.00039999,31]
[408833548,1774338657677,-898.62825728,0.00039999,31]
[408833549,1774338657687,-898.62825728,0.00039999,31]
[408833550,1774338657696,-898.62825728,0.00039999,31]
[408833551,1774338657706,-898.62825728,0.00039999,31]
[408833552,1774338657716,-898.62825728,0.00039999,31]
[408833553,1774338657727,-898.62825728,0.00039999,31]
[408833554,1774338657737,-898.62825728,0.00039999,31]
[408833555,1774338657747,-898.62825728,0.00039999,31]
[408833556,1774338657756,-898.62825728,0.00039999,31]
[408833557,1774338657766,-898.62825728,0.00039999,31]
[408833558,1774338657775,-898.62825728,0.00039999,31]
[408833559,1774338657785,-898.62825728,0.00039999,31]
[408833560,1774338657795,-898.62825728,0.00039999,31]
[408833561,1774338657804,-898.62825728,0.00039999,31]
[408833562,1774338657813,-898.62825728,0.00039999,31]
[408833563,1774338657823,-898.62825728,0.00039999,31]
[408833564,1774338657832,-898.62825728,0.00039999,31]
[408833565,1774338657842,-898.62825728,0.00039999,31]
[408833566,1774338657852,-898.62825728,0.00039999,31]
[408833567,1774338657861,-898.62825728,0.00039999,31]
[408833568,1774338657871,-898.62825728,0.00039999,31]
[408833569,1774338657881,-898.62825728,0.00039999,31]
[408833570,1774338657891,-898.62825728,0.00039999,31]
[408833571,1774338657900,-898.62825728,0.00039999,31]
[408833572,1774338657910,-898.62825728,0.00039999,31]
[408833573,1774338657919,-898.62825728,0.00039999,31]
[408833574,1774338657929,-898.62825728,0.00039999,31]
[408833575,1774338657939,-898.62825728,0.00039999,31]
[408833576,1774338657948,-898.62825728,0.00039999,31]
[408833577,1774338657958,-1011.51203692,0.0004,2]
[408833578,1774338657968,-30652.12533832,0.0004,2]
[408833579,1774338657978,-1573.3443271,0.0004,2]
[408833580,1774338657988,-4140.5906801,0.0004,2]
[408833581,1774338657998,-7370.33957215,0.0004,120]
[408833582,1774338658007,-10769.0137287,0.0004,2]
[408833583,1774338658016,-5029.95676495,0.0004,7]
[408833584,1774338658026,-5078.5798037,0.0004,9]
[408833585,1774338658035,-160.90655458,0.0004,2]
[408833586,1774338658045,-1000.0,0.0004,7]
[408833587,1774338658055,-1000.16,0.0004,7]
[408833588,1774338658064,-1100.0,0.0004,120]
[408833589,1774338658076,-1003.16,0.0004,2]
[408833590,1774338658085,-1000.0,0.0004,2]
[408833591,1774338658095,-151.0,0.0004,120]
[408833592,1774338658104,-5077.25369814,0.0004,8]
[408833593,1774338658113,-979.16666667,0.0004,30]
[408833594,1774338658123,-17352.32464762,0.0004,120]
[408833595,1774338658132,-156.28552491,0.0004,120]
[408833596,1774338658142,-310.0,0.0004,120]
[408833597,1774338658153,-154.0,0.0004,120]
[408833598,1774338658162,-296.67123411,0.0004,30]
[408833599,1774338658171,-1009.85,0.0004,120]
[408833600,1774338658181,-1609.17502171,0.0004,120]
[408833601,1774338658193,-3076.25166581,0.0004,5]
[408833602,1774338658203,-204.06,0.0004,120]
[408833603,1774338658213,-400.68,0.0004,120]
[408833604,1774338658223,-210.95,0.0004,120]
[408833605,1774338658232,-979.16666667,0.0004,10]
[408833606,1774338658243,-6835.0,0.0004019,120]
[408833607,1774338658253,-170.0,0.00040356,120]
[408833608,1774338658263,-79735.57259163,0.00040479,2]
[408833609,1774338658275,-154.0,0.00040516,30]
[408833610,1774338658284,-198.0,0.00040516,30]
[408833611,1774338658295,-1093.8,0.00040585,30]
[408833612,1774338658305,-392.0,0.00040642,30]
[408833613,1774338658314,-600.0,0.00040642,30]
[408833614,1774338658324,-196.27681591,0.000407,6]
[408833615,1774338658333,-1973.23557195,0.000409,2]
[408833616,1774338658342,-14593.0,0.0004095,60]
[408833617,1774338658353,-57130.06839515,0.00041,5]
[408833618,1774338658364,-574.90378615,0.00041,30]
[408833619,1774338658375,-726.67485229,0.00041,30]
[408833620,1774338658386,-32389.00737445,0.00041,120]
[408833621,1774338658396,-61161.4818,0.00041,2]
[408833622,1774338658405,-500.0,0.00041092,29]
[408833623,1774338658414,-500.0,0.00041092,29]
[408833624,1774338658424,-500.0,0.00041092,29]
[408833625,1774338658433,-500.0,0.00041092,29]
[408833626,1774338658442,-500.0,0.00041092,29]
[408833627,1774338658451,-500.0,0.00041092,29]
[408833628,1774338658460,-500.0,0.00041092,29]
[408833629,1774338658471,-500.0,0.00041092,29]
[408833630,1774338658481,-500.0,0.00041092,29]
[408833631,1774338658491,-500.0,0.00041092,29]
[408833632,1774338658500,-500.0,0.00041092,29]
[408833633,1774338658510,-500.0,0.00041092,29]
[408833634,1774338658520,-396.68097798,0.00041092,29]
[408833635,1774338658530,-500.0,0.00041092,120]
[408833636,1774338658539,-500.0,0.00041092,120]
[408833637,1774338658548,-500.0,0.00041092,120]
[408833638,1774338658557,-500.0,0.00041092,120]
[408833639,1774338658567,-500.0,0.00041092,120]
[408833640,1774338658576,-500.0,0.00041092,120]
[408833641,1774338658585,-500.0,0.00041092,120]
[408833642,1774338658595,-500.0,0.00041092,120]
[408833643,1774338658604,-500.0,0.00041092,120]
[408833644,1774338658613,-500.0,0.00041092,120]
[408833645,1774338658623,-500.0,0.00041092,120]
[408833646,1774338658633,-500.0,0.00041092,120]
[408833647,1774338658643,-436.48877466,0.00041092,120]
[408833648,1774338658652,-150.0,0.00041092,120]
[408833649,1774338658661,-160.69380475,0.00041092,120]
[408833650,1774338658671,-150.0,0.00041092,120]
[408833651,1774338658680,-150.0,0.00041092,120]
[408833652,1774338658690,-150.0,0.00041092,120]
[408833653,1774338658700,-500.0,0.00041092,120]
[408833654,1774338658710,-500.0,0.00041092,120]
[408833655,1774338658719,-500.0,0.00041092,120]
[408833656,1774338658728,-500.0,0.00041092,120]
[408833657,1774338658737,-150.0,0.00041092,120]
[408833658,1774338658747,-623.60857192,0.00041092,120]
[408833659,1774338658756,-500.0,0.00041092,120]
[408833660,1774338658765,-150.0,0.00041092,120]
[408833661,1774338658775,-500.0,0.00041092,120]
[408833662,1774338658784,-150.0,0.00041092,120]
[408833663,1774338658793,-150.0,0.00041092,120]
[408833664,1774338658802,-150.0,0.00041092,68]
[408833665,1774338658811,-500.0,0.00041092,120]
[408833666,1774338658820,-150.0,0.00041092,120]
[408833667,1774338658830,-173.15425465,0.00041092,120]
[408833668,1774338658840,-150.0,0.00041092,68]
[408833669,1774338658849,-243.390873,0.00041092,120]
[408833670,1774338658858,-500.0,0.00041092,120]
[408833671,1774338658867,-150.0,0.00041092,68]
[408833672,1774338658876,-196.31640517,0.00041092,120]
[408833673,1774338658885,-150.0,0.00041092,68]
[408833674,1774338658894,-251.88601728,0.00041092,68]
[408833675,1774338658903,-500.0,0.00041092,120]
[408833676,1774338659274,-500.0,0.00041092,120]
[408833677,1774338659287,-231.05504051,0.00041092,120]
[408833678,1774338659296,-150.0,0.00041092,120]
[408833679,1774338659306,-150.0,0.00041092,120]
[408833680,1774338659317,-150.0,0.00041092,120]
[408833681,1774338659327,-153.74366055,0.00041092,120]
[408833682,1774338659336,-500.0,0.00041092,120]
[408833683,1774338659346,-500.0,0.00041092,120]
[408833684,1774338659359,-500.0,0.00041092,120]
[408833685,1774338659369,-500.0,0.00041092,120]
[408833686,1774338659379,-500.0,0.00041092,120]
[408833687,1774338659388,-500.0,0.00041092,120]
[408833688,1774338659399,-500.0,0.00041092,120]
[408833689,1774338659408,-500.0,0.00041092,120]
[408833690,1774338659418,-500.0,0.00041092,120]
[408833691,1774338659428,-500.0,0.00041092,120]
[408833692,1774338659438,-500.0,0.00041092,120]
[408833693,1774338659447,-500.0,0.00041092,120]
[408833694,1774338659457,-500.0,0.00041092,120]
[408833695,1774338659466,-629.57545676,0.00041092,120]
[408833696,1774338659475,-500.0,0.00041092,120]
[408833697,1774338659485,-500.0,0.00041092,120]
[408833698,1774338659494,-500.0,0.00041092,120]
[408833699,1774338659503,-500.0,0.00041092,120]
[408833700,1774338659512,-500.0,0.00041092,120]
[408833701,1774338659521,-500.0,0.00041092,120]
[408833702,1774338659531,-500.0,0.00041092,120]
[408833703,1774338659540,-500.0,0.00041092,120]
[408833704,1774338659549,-500.0,0.00041092,120]
[408833705,1774338659559,-500.0,0.00041092,120]
[408833706,1774338659567,-500.0,0.00041092,120]
[408833707,1774338659577,-500.0,0.00041092,120]
[408833708,1774338659587,-471.27982865,0.00041092,120]
[408833709,1774338659596,-500.0,0.00041092,120]
[408833710,1774338659605,-384.61867322,0.00041092,120]
[408833711,1774338659615,-500.0,0.00041092,120]
[408833712,1774338659624,-500.0,0.00041092,120]
[408833713,1774338659633,-500.0,0.00041092,120]
[408833714,1774338659643,-184.02985109,0.00041092,120]
[408833715,1774338659652,-500.0,0.00041092,120]
[408833716,1774338659661,-500.0,0.00041092,120]
[408833717,1774338659670,-500.0,0.00041092,120]
[408833718,1774338659679,-500.0,0.00041092,120]
[408833719,1774338659689,-500.0,0.00041092,120]
[408833720,1774338659698,-500.0,0.00041092,120]
[408833721,1774338659707,-500.0,0.00041092,120]
[408833722,1774338659716,-500.0,0.00041092,120]
[408833723,1774338659725,-500.0,0.00041092,120]
[408833724,1774338659734,-500.0,0.00041092,120]
[408833725,1774338659744,-500.0,0.00041092,120]
[408833726,1774338659753,-500.0,0.00041092,120]
[408833727,1774338659762,-500.0,0.00041092,120]
[408833728,1774338659771,-500.0,0.00041092,120]
[408833729,1774338659780,-500.0,0.00041092,120]
[408833730,1774338659789,-500.0,0.00041092,120]
[408833731,1774338659799,-500.0,0.00041092,120]
[408833732,1774338659808,-500.0,0.00041092,120]
[408833733,1774338659818,-500.0,0.00041092,120]
[408833734,1774338659827,-500.0,0.00041092,120]
[408833735,1774338659836,-500.0,0.00041092,120]
[408833736,1774338659846,-500.0,0.00041092,120]
[408833737,1774338659855,-500.0,0.00041092,120]
[408833738,1774338659866,-500.0,0.00041092,120]
[408833739,1774338659875,-500.0,0.00041092,120]
[408833740,1774338659884,-500.0,0.00041092,120]
[408833741,1774338659894,-541.44438281,0.00041092,120]
[408833742,1774338659903,-500.0,0.00041092,120]
[408833743,1774338659913,-500.0,0.00041092,120]
[408833744,1774338659923,-150.0,0.00041092,2]
[408833745,1774338659934,-500.0,0.00041092,120]
[408833746,1774338659943,-500.0,0.00041092,120]
[408833747,1774338659952,-500.0,0.00041092,120]
[408833748,1774338659961,-500.0,0.00041092,120]
[408833749,1774338659970,-500.0,0.00041092,120]
[408833750,1774338659979,-500.0,0.00041092,120]
[408833751,1774338659988,-500.0,0.00041092,120]
[408833752,1774338659998,-407.80148729,0.00041092,120]
[408833753,1774338660007,-500.0,0.00041092,120]
[408833754,1774338660016,-500.0,0.00041092,120]
[408833755,1774338660026,-500.0,0.00041092,120]
[408833756,1774338660036,-150.0,0.00041092,2]
[408833757,1774338660046,-500.0,0.00041092,120]
[408833758,1774338660057,-500.0,0.00041092,120]
[408833759,1774338660066,-546.397481,0.00041092,120]
[408833760,1774338660078,-500.0,0.00041092,120]
[408833761,1774338660087,-500.0,0.00041092,120]
[408833762,1774338660097,-150.0,0.00041092,2]
[408833763,1774338660107,-500.0,0.00041092,120]
[408833764,1774338660117,-500.0,0.00041092,120]
[408833765,1774338660127,-316.54999376,0.00041092,120]
[408833766,1774338660136,-500.0,0.00041092,120]
[408833767,1774338660146,-500.0,0.00041092,120]
[408833768,1774338660155,-500.0,0.00041092,120]
[408833769,1774338660165,-500.0,0.00041092,120]
[408833770,1774338660174,-500.0,0.00041092,120]
[408833771,1774338660183,-500.0,0.00041092,120]
[408833772,1774338660193,-500.0,0.00041092,120]
[408833773,1774338660202,-500.0,0.00041092,120]
[408833774,1774338660211,-500.0,0.00041092,120]
[408833775,1774338660220,-155.38199305,0.00041092,120]
[408833776,1774338660229,-12912.66681508,0.00041092,3]
[408833777,1774338660239,-48094.1832449,0.00041092,5]
[408833778,1774338660248,-2735.451747,0.00041094,60]
[408833779,1774338660258,-2735.45174699,0.00041094,60]
[408833780,1774338660267,-590.67,0.00041095,120]
[408833781,1774338660277,-1000.0,0.00041095,120]
[408833782,1774338660286,-500.0,0.00041095,120]
[408833783,1774338660296,-500.0,0.00041095,120]
[408833784,1774338660305,-500.0,0.00041095,120]
[408833785,1774338660314,-547.16197262,0.00041095,120]
[408833786,1774338660324,-500.0,0.00041095,120]
[408833787,1774338660333,-500.0,0.00041095,120]
[408833788,1774338660343,-500.0,0.00041095,120]
[408833789,1774338660355,-500.0,0.00041095,120]
[408833790,1774338660365,-500.0,0.00041095,120]
[408833791,1774338660374,-500.0,0.00041095,120]
[408833792,1774338660384,-257.71582171,0.00041095,120]
[408833793,1774338660395,-500.0,0.00041095,120]
[408833794,1774338660405,-500.0,0.00041095,120]
[408833795,1774338660414,-500.0,0.00041095,120]
[408833796,1774338660423,-500.0,0.00041095,120]
[408833797,1774338660434,-500.0,0.00041095,120]
[408833798,1774338660444,-500.0,0.00041095,120]
[408833799,1774338660453,-500.0,0.00041095,120]
[408833800,1774338660462,-500.0,0.00041095,120]
[408833801,1774338660471,-500.0,0.00041095,120]
[408833802,1774338660481,-500.0,0.00041095,120]
[408833803,1774338660491,-500.0,0.00041095,120]
[408833804,1774338660501,-511.20969588,0.00041095,120]
[408833805,1774338660510,-500.0,0.00041095,120]
[408833806,1774338660520,-537.61324194,0.00041095,120]
[408833807,1774338660529,-500.0,0.00041095,120]
[408833808,1774338660538,-500.0,0.00041095,120]
[408833809,1774338660548,-500.0,0.00041095,120]
[408833810,1774338660557,-500.0,0.00041095,120]
[408833811,1774338660566,-592.07725251,0.00041095,120]
[408833812,1774338660576,-500.0,0.00041095,120]
[408833813,1774338660587,-539.96158216,0.00041095,120]
[408833814,1774338660596,-500.0,0.00041095,120]
[408833815,1774338660606,-500.0,0.00041095,120]
[408833816,1774338660615,-500.0,0.00041095,120]
[408833817,1774338660624,-580.38566576,0.00041095,120]
[408833818,1774338660634,-518.19852123,0.00041095,120]
[408833819,1774338660644,-500.0,0.00041095,120]
[408833820,1774338660654,-630.00146357,0.00041095,120]
[408833821,1774338660664,-500.0,0.00041095,120]
[408833822,1774338660673,-500.0,0.00041095,120]
[408833823,1774338660682,-500.0,0.00041095,120]
[408833824,1774338660692,-500.0,0.00041095,120]
[408833825,1774338660701,-500.0,0.00041095,120]
[408833826,1774338660711,-500.0,0.00041095,120]
[408833827,1774338660721,-533.19980427,0.00041095,120]
[408833828,1774338660730,-569.28263227,0.00041095,120]
[408833829,1774338660739,-500.0,0.00041095,120]
[408833830,1774338660749,-500.0,0.00041095,120]
[408833831,1774338660758,-540.37228187,0.00041095,120]
[408833832,1774338660767,-500.0,0.00041095,120]
[408833833,1774338660777,-500.0,0.00041095,120]
[408833834,1774338660786,-602.07384376,0.00041095,120]
[408833835,1774338660796,-549.88207272,0.00041095,120]
[408833836,1774338660805,-500.0,0.00041095,120]
[408833837,1774338660814,-545.14102087,0.00041095,120]
[408833838,1774338660825,-539.01797403,0.00041095,120]
[408833839,1774338660834,-543.14885503,0.00041095,120]
[408833840,1774338660844,-500.0,0.00041095,120]
[408833841,1774338660855,-500.0,0.00041095,120]
[408833842,1774338660864,-500.0,0.00041095,120]
[408833843,1774338660874,-705.66,0.00041095,120]
[408833844,1774338660884,-500.0,0.00041095,120]
[408833845,1774338660895,-500.0,0.00041095,120]
[408833846,1774338660905,-943.74,0.00041095,120]
[408833847,1774338660916,-608.97749151,0.00041095,120]
[408833848,1774338660925,-536.65100324,0.00041095,120]
[408833849,1774338660935,-500.0,0.00041095,120]
[408833850,1774338660945,-577.95236547,0.00041095,120]
[408833851,1774338660955,-500.0,0.00041095,120]
[408833852,1774338660965,-500.0,0.00041095,120]
[408833853,1774338660975,-500.0,0.00041095,120]
[408833854,1774338660984,-500.0,0.00041095,120]
[408833855,1774338660994,-500.0,0.00041095,120]
[408833856,1774338661003,-500.0,0.00041095,120]
[408833857,1774338661012,-500.0,0.00041095,120]
[408833858,1774338661022,-500.0,0.00041095,120]
[408833859,1774338661032,-500.0,0.00041095,120]
[408833860,1774338661042,-507.3,0.00041095,120]
[408833861,1774338661052,-500.0,0.00041095,120]
[408833862,1774338661062,-568.39,0.00041095,120]
[408833863,1774338661072,-500.0,0.00041095,120]
[408833864,1774338661082,-729.64,0.00041095,120]
[408833865,1774338661092,-500.0,0.00041095,120]
[408833866,1774338661102,-639.9,0.00041095,120]
[408833867,1774338661112,-500.0,0.00041095,120]
[408833868,1774338661121,-500.0,0.00041095,120]
[408833869,1774338661131,-500.0,0.00041095,120]
[408833870,1774338661140,-500.0,0.00041095,14]
[408833871,1774338661150,-500.0,0.00041095,120]
[408833872,1774338661160,-500.0,0.00041095,30]
[408833873,1774338661170,-651.21,0.00041095,120]
[408833874,1774338661179,-500.0,0.00041095,120]
[408833875,1774338661188,-500.0,0.00041095,120]
[408833876,1774338661199,-500.0,0.00041095,120]
[408833877,1774338661208,-524.6,0.00041095,120]
[408833878,1774338661218,-978.66,0.00041095,120]
[408833879,1774338661227,-500.0,0.00041095,120]
[408833880,1774338661236,-500.0,0.00041095,30]
[408833881,1774338661247,-1180.13,0.00041095,120]
[408833882,1774338661256,-500.0,0.00041095,120]
[408833883,1774338661266,-500.0,0.00041095,120]
[408833884,1774338661276,-549.16501674,0.00041095,120]
[408833885,1774338661286,-574.37,0.00041095,120]
[408833886,1774338661296,-500.0,0.00041095,120]
[408833887,1774338661306,-1281.45,0.00041095,120]
[408833888,1774338661316,-500.0,0.00041095,120]
[408833889,1774338661325,-1329.75,0.00041095,120]
[408833890,1774338661336,-500.0,0.00041095,120]
[408833891,1774338661345,-500.0,0.00041095,120]
[408833892,1774338661359,-500.0,0.00041095,120]
[408833893,1774338661368,-500.0,0.00041095,90]
[408833894,1774338661377,-500.0,0.00041095,120]
[408833895,1774338661386,-500.0,0.00041095,120]
[408833896,1774338661397,-500.0,0.00041095,120]
[408833897,1774338661406,-500.0,0.00041095,120]
[408833898,1774338661415,-500.0,0.00041095,120]
[408833899,1774338661425,-170.35882601,0.00041095,120]
[408833900,1774338661435,-643.20517212,0.00041095,120]
[408833901,1774338661445,-500.0,0.00041095,120]
[408833902,1774338661455,-500.0,0.00041095,120]
[408833903,1774338661464,-500.0,0.00041095,120]
[408833904,1774338661474,-880.66,0.00041095,5]
[408833905,1774338661483,-599.98,0.00041095,120]
[408833906,1774338661492,-1076.85,0.00041095,120]
[408833907,1774338661502,-651.22,0.00041095,120]
[408833908,1774338661511,-500.0,0.00041095,120]
[408833909,1774338661521,-500.0,0.00041095,120]
[408833910,1774338661530,-500.0,0.00041095,120]
[408833911,1774338661539,-500.0,0.00041095,120]
[408833912,1774338661548,-500.0,0.00041095,120]
[408833913,1774338661558,-539.9,0.00041095,120]
[408833914,1774338661666,-500.0,0.00041095,120]
[408833915,1774338661675,-604.85,0.00041095,120]
[408833916,1774338661685,-617.48,0.00041095,120]
[408833917,1774338661694,-500.0,0.00041095,120]
[408833918,1774338661704,-446.49,0.00041095,30]
[408833919,1774338661714,-766.13,0.00041095,120]
[408833920,1774338661723,-500.0,0.00041095,120]
[408833921,1774338661732,-835.56,0.00041095,120]
[408833922,1774338661741,-604.1118028,0.00041095,120]
[408833923,1774338661752,-792.41,0.00041095,120]
[408833924,1774338661762,-500.0,0.00041095,120]
[408833925,1774338661771,-500.0,0.00041095,120]
[408833926,1774338661780,-500.0,0.00041095,120]
[408833927,1774338661789,-641.92233216,0.00041095,120]
[408833928,1774338661799,-500.0,0.00041095,120]
[408833929,1774338661808,-500.0,0.00041095,120]
[408833930,1774338661817,-500.0,0.00041095,120]
[408833931,1774338661826,-500.0,0.00041095,120]
[408833932,1774338661836,-500.0,0.00041095,120]
[408833933,1774338661845,-500.0,0.00041095,120]
[408833934,1774338661855,-500.0,0.00041095,120]
[408833935,1774338661865,-500.0,0.00041095,120]
[408833936,1774338661874,-278.10292071,0.00041095,120]
[408833937,1774338661883,-500.0,0.00041095,120]
[408833938,1774338661893,-500.0,0.00041095,120]
[408833939,1774338661903,-500.0,0.00041095,120]
[408833940,1774338661913,-1234.56,0.00041095,120]
[408833941,1774338661923,-500.0,0.00041095,120]
[408833942,1774338661933,-500.0,0.00041095,120]
[408833943,1774338661943,-890.18,0.00041095,120]
[408833944,1774338661952,-500.0,0.00041095,120]
[408833945,1774338661962,-500.0,0.00041095,120]
[408833946,1774338661971,-500.0,0.00041095,120]
[408833947,1774338661980,-500.0,0.00041095,120]
[408833948,1774338661990,-500.0,0.00041095,120]
[408833949,1774338661999,-1024.48,0.00041095,120]
[408833950,1774338662008,-500.0,0.00041095,120]
[408833951,1774338662018,-500.0,0.00041095,120]
[408833952,1774338662028,-500.0,0.00041095,120]
[408833953,1774338662037,-151.51625233,0.00041095,120]
[408833954,1774338662046,-500.0,0.00041095,120]
[408833955,1774338662055,-500.0,0.00041095,120]
[408833956,1774338662064,-500.00738464,0.00041095,120]
[408833957,1774338662074,-500.0,0.00041095,120]
[408833958,1774338662083,-500.0,0.00041095,120]
[408833959,1774338662092,-500.0,0.00041095,120]
[408833960,1774338662102,-500.0,0.00041095,120]
[408833961,1774338662116,-231.52184444,0.00041095,120]
[408833962,1774338662124,-500.0,0.00041095,120]
[408833963,1774338662133,-500.0,0.00041095,120]
[408833964,1774338662142,-2135.18,0.00041095,120]
[408833965,1774338662151,-500.0,0.00041095,120]
[408833966,1774338662160,-766.51,0.00041095,120]
[408833967,1774338662169,-500.0,0.00041095,120]
[408833968,1774338662179,-500.0,0.00041095,120]
[408833969,1774338662188,-500.0,0.00041095,120]
[408833970,1774338662197,-617.92687565,0.00041095,120]
[408833971,1774338662206,-500.0,0.00041095,120]
[408833972,1774338662215,-677.14,0.00041095,120]
[408833973,1774338662224,-615.96206561,0.00041095,120]
[408833974,1774338662234,-563.42737846,0.00041095,120]
[408833975,1774338662244,-500.0,0.00041095,120]
[408833976,1774338662254,-500.0,0.00041095,120]
[408833977,1774338662263,-500.0,0.00041095,120]
[408833978,1774338662273,-558.29421607,0.00041095,120]
[408833979,1774338662282,-563.34,0.00041095,120]
[408833980,1774338662291,-1402.94,0.00041095,120]
[408833981,1774338662300,-532.87415471,0.00041095,120]
[408833982,1774338662309,-761.77,0.00041095,120]
[408833983,1774338662319,-500.0,0.00041095,120]
[408833984,1774338662329,-1465.28,0.00041095,120]
[408833985,1774338662338,-500.0,0.00041095,120]
[408833986,1774338662349,-500.0,0.00041095,120]
[408833987,1774338662362,-500.0,0.00041095,120]
[408833988,1774338662372,-500.0,0.00041095,120]
[408833989,1774338662382,-500.0,0.00041095,120]
[408833990,1774338662391,-500.0,0.00041095,120]
[408833991,1774338662401,-500.0,0.00041095,120]
[408833992,1774338662410,-344.67537254,0.00041095,120]